[Event "Polish Youth Ekstraliga 2022"]
[Site "Lublin"]
[Date "2022.06.29"]
[Round "5.4"]
[White "Ochedzan, Filip"]
[Black "Suska, Szymon"]
[Result "1/2-1/2"]
[ECO "B06"]
[WhiteElo "1873"]
[BlackElo "1604"]
[Annotator "NA RC"]
[PlyCount "71"]
[EventDate "2022.06.24"]
[EventType "team-tourn"]
[EventCountry "POL"]
[SourceTitle "playchess.com"]
[Source "ChessBase"]
[SourceQuality "1"]
[TimeControl "40/5400+30:1800+30"]

1. e4 {[%emt 0:00:06]} d6 {[%emt 0:00:06]} 2. d4 {[%emt 0:00:11]} g6 {[%emt 0:00:06]} 3. Nc3 {[%emt 0:00:43]} Bg7 {[%emt 0:00:08]} 4. Bg5 {[%emt 0:02:29]} a6 {[%emt 0:01:42]} 5. Nf3 {[%emt 0:05:38]} Bg4 {[%emt 0:10:23]} 6. Be2 {[%emt 0:05:14]} Nc6 {[%emt 0:03:33]} 7. Be3 {[%emt 0:09:12]} e5 {[%emt 0:11:35]} 8. d5 {[%emt 0:05:18]} Nce7 {[%emt 0:02:52]} 9. Nd2 {[%emt 0:02:25]} Bd7 {[%emt 0:00:49]} 10. O-O {[%emt 0:04:26]} Nf6 {[%emt 0:09:31]} 11. Ncb1 {[%emt 0:04:05]} O-O {[%emt 0:01:38]} 12. c4 {[%emt 0:01:24]} Ne8 {[%emt 0:00:21]} 13. Nc3 {[%emt 0:02:00]} f5 {[%emt 0:00:48]} 14. f4 {[%emt 0:04:50]} exf4 {[%emt 0:07:37]} 15. Bxf4 {[%emt 0:01:19]} fxe4 {[%emt 0:08:05]} 16. Ndxe4 {[%emt 0:03:00]} Nf6 {[%emt 0:02:37]} 17. Qd2 {[%emt 0:04:37]} Nf5 {[%emt 0:03:48]} 18. Rae1 {[%emt 0:06:21]} Nxe4 {[%emt 0:04:31]} 19. Nxe4 {[%emt 0:00:12]} Rf7 {[%emt 0:03:15]} 20. Kh1 {[%emt 0:04:13]} Nd4 {[%emt 0:05:14]} 21. Bd3 {[%emt 0:02:14]} (21. Ng5 $5 {[%cal Rg5f7]} Rf8 22. Bd3 $14) 21... Bf5 {[%emt 0:05:45]} 22. Ng5 {[%emt 0:06:43]} Rf8 {[%emt 0:02:18]} 23. Bxf5 {[%emt 0:00:50]} Rxf5 {[%emt 0:00:06]} 24. Rd1 {[%emt 0:02:51]} h6 {[%emt 0:02:36]} 25. Nf3 $15 {[%emt 0:03:58]} Nxf3 {[%emt 0:00:24]} 26. Rxf3 {[%emt 0:00:02]} g5 {[%emt 0:00:45]} 27. Bg3 {[%emt 0:05:20]} Rxf3 {[%emt 0:00:06]} 28. gxf3 {[%emt 0:00:01]} Qf6 {[%emt 0:00:16]} 29. Qe2 {[%emt 0:00:33]} Rf8 {[%emt 0:00:55]} 30. Kg2 {[%emt 0:01:36]} Kh8 {[%emt 0:01:22]} 31. b3 {[%emt 0:01:15]} Qg6 {[%emt 0:01:21]} 32. Qe4 {[%emt 0:02:02]} Qf7 {[%emt 0:01:32]} 33. Re1 {[%emt 0:00:49]} Qf6 {[%emt 0:03:57]} 34. Re2 {[%emt 0:01:16]} Qf7 {[%emt 0:00:20]} 35. Re3 {[%emt 0:01:45]} Qf6 {[%emt 0:00:43]} 36. Re2 1/2-1/2

[Event "Polish Youth Ekstraliga 2022"]
[Site "Lublin"]
[Date "2022.06.29"]
[Round "5.5"]
[White "Rejniak, Zuzanna"]
[Black "Lochina, Justyna"]
[Result "1/2-1/2"]
[ECO "B40"]
[WhiteElo "1804"]
[BlackElo "1672"]
[Annotator "NA RC"]
[PlyCount "65"]
[EventDate "2022.06.24"]
[EventType "team-tourn"]
[EventCountry "POL"]
[SourceTitle "playchess.com"]
[Source "ChessBase"]
[SourceQuality "1"]
[TimeControl "40/5400+30:1800+30"]

1. e4 {[%emt 0:00:02]} c5 {[%emt 0:00:07]} 2. Nf3 {[%emt 0:00:07]} e6 {[%emt 0:00:12]} 3. c3 {[%emt 0:00:04]} d5 {[%emt 0:01:12]} 4. exd5 {[%emt 0:00:06]} Qxd5 {[%emt 0:00:08]} 5. d4 {[%emt 0:00:07]} Nf6 {[%emt 0:00:44]} 6. a3 {[%emt 0:00:19]} Be7 {[%emt 0:03:15]} 7. Bd3 {[%emt 0:05:58]} Nc6 {[%emt 0:03:39]} 8. O-O {[%emt 0:03:02]} O-O {[%emt 0:01:40]} 9. c4 {[%emt 0:06:04]} Qd8 {[%emt 0:05:24]} 10. dxc5 {[%emt 0:02:13]} a5 {[%emt 0:10:09]} 11. Nc3 {[%emt 0:04:37]} Bxc5 {[%emt 0:03:06]} 12. Bg5 {[%emt 0:05:09]} h6 {[%emt 0:15:21]} 13. Bh4 {[%emt 0:03:45]} Re8 {[%emt 0:06:15]} 14. Qe2 {[%emt 0:17:19]} Nd4 {[%emt 0:08:50]} 15. Nxd4 {[%emt 0:00:14]} Qxd4 {[%emt 0:00:15]} 16. Bxf6 {[%emt 0:06:14]} Qxf6 {[%emt 0:01:54]} 17. Ne4 {[%emt 0:02:56]} Qe7 {[%emt 0:01:23]} 18. Nxc5 {[%emt 0:02:00]} Qxc5 {[%emt 0:00:09]} 19. b4 {[%emt 0:00:44]} Qa7 {[%emt 0:07:06]} 20. Qe4 {[%emt 0:04:36]} f5 {[%emt 0:03:14]} 21. Qe5 {[%emt 0:02:09]} Bd7 {[%emt 0:04:08]} 22. Rfe1 {[%emt 0:07:09]} b6 {[%emt 0:04:19]} 23. c5 {[%emt 0:04:24]} Qb8 {[%emt 0:04:41]} 24. Qd4 {[%emt 0:03:00]} Rd8 {[%emt 0:00:48]} 25. Bc4 $16 {[%emt 0:01:33]} ({But not} 25. cxb6 {[#]} Bb5 $1 26. Qc5 Bxd3 $15) 25... axb4 {[%emt 0:02:33]} 26. axb4 {[%emt 0:00:55]} Rxa1 {[%emt 0:01:02]} 27. Rxa1 {[%emt 0:00:06]} bxc5 {[%emt 0:00:54]} 28. bxc5 {[%emt 0:00:07]} Bc6 {[%emt 0:06:08]} 29. Bxe6+ {[%emt 0:00:37]} Kh8 {[%emt 0:00:08]} 30. Qc3 {[%emt 0:03:12]} Qf4 {[%emt 0:02:02]} 31. Qg3 {[%emt 0:04:17]} Qd4 {[%emt 0:00:46]} 32. Re1 {[%emt 0:00:15]} Qxc5 {[%emt 0:02:22]} 33. h3 {[%emt 0:01:31]} 1/2-1/2

[Event "Polish Youth Ekstraliga 2022"]
[Site "Lublin"]
[Date "2022.06.29"]
[Round "5.6"]
[White "Smietanska, Wiktoria"]
[Black "Walewska, Natalia"]
[Result "1-0"]
[ECO "C88"]
[WhiteElo "1879"]
[BlackElo "1179"]
[Annotator "NA RC"]
[PlyCount "77"]
[EventDate "2022.06.24"]
[EventType "team-tourn"]
[EventCountry "POL"]
[SourceTitle "playchess.com"]
[Source "ChessBase"]
[SourceQuality "1"]
[TimeControl "40/5400+30:1800+30"]

1. e4 {[%emt 0:00:03]} e5 {[%emt 0:00:02]} 2. Nf3 {[%emt 0:00:07]} Nc6 {[%emt 0:00:20]} 3. Bb5 {[%emt 0:00:07]} a6 {[%emt 0:00:11]} 4. Ba4 {[%emt 0:00:07]} Nf6 {[%emt 0:00:38]} 5. O-O {[%emt 0:00:09]} Be7 {[%emt 0:00:19]} 6. Re1 {[%emt 0:00:07]} b5 {[%emt 0:00:09]} 7. Bb3 {[%emt 0:00:08]} O-O {[%emt 0:00:18]} 8. a4 {[%emt 0:00:09]} Bb7 {[%emt 0:02:37]} 9. d3 {[%emt 0:00:10]} d6 {[%emt 0:00:55]} 10. Nbd2 {[%emt 0:00:58]} h6 {[%emt 0:01:32] 10...Nd7 is setting a new trend.} 11. Nf1 {[%emt 0:01:52]} Kh7 {[%emt 0:12:58]} 12. c3 {[%emt 0:02:04] [#]} g6 $146 {[%emt 0:02:53]} ({Predecessor:} 12... Ng8 13. d4 Bf6 14. Ne3 Nce7 15. Bc2 Kh8 16. h4 Ng6 17. g3 Re8 18. h5 Nf8 19. axb5 exd4 20. Nxd4 Bxd4 21. cxd4 Bxe4 22. Bxe4 Rxe4 23. bxa6 {0-1 (39) Oriot,P (1954)-Saucey,C (1872) France 2012}) 13. d4 {[%emt 0:01:59]} Kg7 {[%emt 0:01:21]} 14. Bc2 {[%emt 0:04:41]} Re8 {[%emt 0:02:36]} 15. Ng3 {[%emt 0:03:52]} Bf8 {[%emt 0:02:43]} 16. d5 {[%emt 0:03:04]} ({Don't do} 16. Qd2 Kg8 $14) 16... Nb8 {[%emt 0:03:18]} 17. Bd3 {[%emt 0:02:18]} Qd7 {[%emt 0:04:48]} 18. Qb3 {[%emt 0:05:02]} bxa4 $2 {[%emt 0:01:57]} 19. Qxb7 {[%emt 0:00:59]} Nc6 {[%emt 0:03:59]} 20. Qxc6 {[%emt 0:00:07]} Qe7 {[%emt 0:00:32]} 21. Rxa4 {[%emt 0:00:22]} a5 {[%emt 0:00:43]} 22. b4 {[%emt 0:01:09]} Rab8 {[%emt 0:00:30]} 23. bxa5 {[%emt 0:00:29]} Rec8 {[%emt 0:02:11]} 24. Ba6 {[%emt 0:01:57]} Rd8 {[%emt 0:00:36]} 25. Bb7 {[%emt 0:00:07]} Nd7 {[%emt 0:01:14]} 26. Be3 {[%emt 0:01:36]} Nc5 $18 {[%emt 0:00:19]} 27. Bxc5 {[%emt 0:00:16]} dxc5 {[%emt 0:00:05]} 28. a6 {[%emt 0:00:21]} Rd6 {[%emt 0:00:56]} 29. Qxc5 {[%emt 0:00:53]} Rb6 {[%emt 0:00:30]} 30. Qxe7 {[%emt 0:00:08]} Bxe7 {[%emt 0:00:01]} 31. Nxe5 {[%emt 0:00:11]} R6xb7 {[%emt 0:00:20]} 32. axb7 {[%emt 0:00:06]} Rxb7 {[%emt 0:00:10]} 33. Nc6 {[%emt 0:00:05]} Bc5 {[%emt 0:00:39]} 34. Rc4 {[%emt 0:00:18]} Bd6 {[%emt 0:00:23]} 35. e5 {[%emt 0:00:06]} Bf8 {[%emt 0:00:23]} 36. e6 {[%emt 0:00:05]} fxe6 {[%emt 0:00:14]} 37. dxe6 {[%emt 0:00:05]} Bd6 {[%emt 0:00:20]} 38. e7 {[%emt 0:00:12]} Bxe7 {[%emt 0:00:06]} 39. Rxe7+ {[%emt 0:00:05]} 1-0

[Event "Polish Youth Ekstraliga 2022"]
[Site "Lublin"]
[Date "2022.06.29"]
[Round "5.7"]
[White "Dzida, Kamil"]
[Black "Poltorak, Sebastian"]
[Result "0-1"]
[ECO "B00"]
[WhiteElo "2294"]
[BlackElo "2322"]
[Annotator "TA"]
[PlyCount "62"]
[EventDate "2022.06.24"]
[EventType "team-tourn"]
[EventCountry "POL"]
[SourceTitle "playchess.com"]
[Source "ChessBase"]
[SourceQuality "1"]
[TimeControl "40/5400+30:1800+30"]

{[%evp 11,62,87,75,73,79,45,71,70,62,-45,0,-22,-8,-39,-44,-39,-32,-34,-28,-62,-81,-62,-55,-56,-51,-42,-19,-21,-25,-56,-45,-54,-23,-104,-56,-81,-8,-29,-19,-39,12,-202,-207,-207,-208,-209,-200,-200,-179,-469,-418,-388,-383]} 1. e4 {[%emt 0:00:01]} Nc6 {[%emt 0:00:19]} 2. Nf3 {[%emt 0:00:11]} f5 {[%emt 0:00:06]} 3. exf5 d5 {[%emt 0:00:05]} 4. Bb5 {[%emt 0:00:29]} Bxf5 {[%emt 0:00:19]} 5. O-O {[%emt 0:02:05]} Qd6 {[%emt 0:05:15]} 6. d4 {[%emt 0:05:37]} O-O-O {[%emt 0:02:01] [#]} 7. Nc3 $146 {[%emt 0:03:18] B00: Queen's Fianchetto Defence, Nimzowitsch Defence.} ({Predecessor:} 7. Bxc6 Qxc6 8. Ne5 Qf6 9. c3 e6 10. Re1 Bd6 11. Nd2 g5 12. Qa4 a6 13. b4 Bxe5 14. dxe5 Qg6 15. b5 Bc2 16. Qa5 Qd3 17. a4 d4 18. cxd4 Qxd4 19. Ra3 Qb6 20. Qxb6 cxb6 21. Rc3+ {1-0 (21) Gritsenko,N (2309)-Kiltti,J (2199) Chess.com INT 2021}) 7... h6 {[%emt 0:06:59]} 8. Re1 {[%emt 0:05:26]} e6 {[%emt 0:09:29]} 9. Ne5 {[%emt 0:15:39] White is better.} Nxe5 {[%emt 0:00:47]} 10. Rxe5 {[%emt 0:00:04]} ({Much weaker is} 10. dxe5 Qb6 11. Bd3 Bc5 $11) (10. Bf4 $1 $14) 10... c6 {[%emt 0:05:15]} 11. Bd3 {[%emt 0:00:23]} Qd7 {[%emt 0:01:39]} 12. a4 {[%emt 0:14:21]} Bd6 {[%emt 0:03:22]} 13. Re1 {[%emt 0:00:23]} Nf6 {[%emt 0:03:45]} 14. a5 {[%emt 0:01:02]} Rhf8 {[%emt 0:04:48]} 15. h3 {[%emt 0:05:46]} g5 {[%emt 0:05:20]} 16. Na4 {[%emt 0:02:12]} Rde8 {[%emt 0:06:11]} 17. Nc5 {[%emt 0:01:26]} Bxc5 {[%emt 0:05:09]} 18. dxc5 {[%emt 0:00:03]} Bxd3 {[%emt 0:01:26]} 19. Qxd3 {[%emt 0:01:15]} a6 $1 {[%emt 0:00:11]} 20. b4 {[%emt 0:04:25]} e5 $1 {[%emt 0:07:28][%cal Be6e5,Be5e4][%mdl 32]} 21. Bb2 {[%emt 0:05:13]} e4 {[%emt 0:01:52]} 22. Qe3 {[%emt 0:02:12]} (22. Qe2 $11 {remains equal.}) 22... g4 {[%emt 0:02:33]} (22... Nh5 $17) 23. Qxh6 {[%emt 0:05:39] [#]} Qf5 {[%emt 0:02:17]} (23... Ng8 $1 $17 {[%cal Rg8h6]} 24. Qe3 gxh3 25. Qxh3 Qxh3 26. gxh3 Ne7) 24. Qh4 {[%emt 0:00:08]} gxh3 {[%emt 0:01:42][%mdl 64] Remove Defender} 25. Qxh3 {[%emt 0:00:35]} Ng4 {[%emt 0:06:31]} ({Black should play} 25... Qxh3 $15 26. gxh3 Nh7) 26. Bd4 $2 {[%emt 0:05:18] [#] This move loses the game for White.} (26. f3 $1 $11 exf3 27. Rxe8+ Rxe8 28. gxf3) 26... Re6 $1 $19 {[%emt 0:03:42] Threatens to win with ...Rh6.} 27. f3 {[%emt 0:06:39]} exf3 {[%emt 0:00:04]} 28. Qxf3 {[%emt 0:02:49]} Qxf3 {[%emt 0:00:17]} 29. gxf3 {[%emt 0:00:06]} Rg6 {[%emt 0:00:04][%cal Og4h2] Hoping for ...Nh2+!} 30. Re7 $2 {[%emt 0:06:30]} (30. fxg4 Rxg4+ 31. Kh2 Rxd4 32. c3 Rd2+ 33. Kh1) 30... Ne3+ {[%emt 0:03:08]} 31. Kf2 {[%emt 0:00:30]} Nf5 {[%emt 0:00:03] Weighted Error Value: White=0.53/Black=0.16 (very precise)} 0-1

[Event "Polish Youth Ekstraliga 2022"]
[Site "Lublin"]
[Date "2022.06.29"]
[Round "5.8"]
[White "Meers, Hubert"]
[Black "Koziorowicz, Michal"]
[Result "1/2-1/2"]
[ECO "B40"]
[WhiteElo "2013"]
[BlackElo "2231"]
[Annotator "TA"]
[PlyCount "139"]
[EventDate "2022.06.24"]
[EventType "team-tourn"]
[EventCountry "POL"]
[SourceTitle "playchess.com"]
[Source "ChessBase"]
[SourceQuality "1"]
[TimeControl "40/5400+30:1800+30"]

{[%evp 9,139,31,31,31,35,33,35,21,13,11,10,23,25,0,0,-6,3,0,0,0,26,40,52,16,16,17,13,0,12,0,0,0,0,0,0,0,0,0,0,0,0,0,0,0,0,0,0,0,19,0,0,0,0,0,0,0,18,18,18,10,8,-12,-10,-11,-6,-8,0,-6,-10,-15,-10,-20,-8,-6,-8,-14,0,0,0,0,0,0,0,0,0,0,0,0,0,0,0,0,0,0,0,0,0,0,0,0,0,0,0,0,0,0,0,0,0,0,0,0,0,0,0,0,0,0,0,0,0,0,0,0,0,0,0,0,0,0,0,0]} 1. e4 {[%emt 0:00:01]} c5 {[%emt 0:00:20]} 2. Nf3 {[%emt 0:00:03]} e6 {[%emt 0:00:29]} 3. c4 {[%emt 0:00:04]} Nc6 {[%emt 0:01:21]} 4. Be2 {[%emt 0:00:04]} d5 {[%emt 0:09:38]} 5. exd5 {[%emt 0:00:05]} exd5 {[%emt 0:00:08]} 6. cxd5 {[%emt 0:00:01] B40: Sicilian: 2...e6, Unusual lines.} Qxd5 {[%emt 0:00:24]} 7. Nc3 {[%emt 0:00:04]} Qd8 {[%emt 0:00:27]} 8. O-O {[%emt 0:01:56] White is slightly better.} Nf6 {[%emt 0:01:54]} 9. Bb5 {[%emt 0:04:44]} Be7 {[%emt 0:01:37]} 10. d4 {[%emt 0:03:19]} O-O {[%emt 0:12:03][%cal Rc6d4] [#]} 11. Be3 $146 {[%emt 0:20:28]} ({Predecessor:} 11. dxc5 Bxc5 12. Bg5 Be7 13. Qxd8 Rxd8 14. Rfe1 Be6 15. Bxc6 bxc6 16. Ne4 Rd5 17. Nxf6+ gxf6 {½-½ (45) Bochnickova,A (2105)-Theissl Pokorna,R (2195) Ziar nad Hronom 1996}) 11... cxd4 {[%emt 0:15:47]} 12. Nxd4 {[%emt 0:00:21]} Nb4 {[%emt 0:06:18]} 13. Qb3 {[%emt 0:03:11]} Nbd5 {[%emt 0:05:01]} 14. Nxd5 {[%emt 0:00:32]} Qxd5 {[%emt 0:02:07]} 15. Bc4 {[%emt 0:02:10]} Qh5 {[%emt 0:01:09]} 16. Rad1 {[%emt 0:11:40]} Bg4 {[%emt 0:07:19] The position is equal.} 17. f3 {[%emt 0:04:40]} Bd6 {[%emt 0:01:54]} 18. g3 {[%emt 0:07:31] Active counter play!} Bh3 {[%emt 0:00:33]} 19. Rfe1 {[%emt 0:01:12]} (19. Qxb7 $2 Rab8 20. Qxa7 Bxf1 21. Rxf1 Rxb2 $19) 19... Bc5 {[%emt 0:04:38]} 20. Bf2 {[%emt 0:09:06]} (20. Qxb7 Rab8 21. Qc7 Rxb2 $17) 20... Rad8 {[%emt 0:00:47]} 21. Qxb7 {[%emt 0:09:50]} Rb8 {[%emt 0:00:30]} 22. Qc7 {[%emt 0:00:57] [#] And now Re5 would win.} Rxb2 {[%emt 0:01:11][%cal Oh5f3]} ({Don't take} 22... Rfc8 23. Qf4 $16) 23. Qf4 {[%emt 0:02:17] Threatens to win with Re5.} Nd5 {[%emt 0:13:33]} 24. Qe5 {[%emt 0:05:43] Dancing on a razor blade.} Qxe5 {[%emt 0:00:04]} 25. Rxe5 {[%emt 0:00:04]} Nc3 {[%emt 0:00:06][%csl LRa2,LRd1]} 26. Rde1 {[%emt 0:05:41]} Bb6 {[%emt 0:01:01][%cal Ob2f2]} 27. Ne2 {[%emt 0:00:01]} Bxf2+ {[%emt 0:02:08]} (27... Nxa2 $2 28. Bxb6 axb6 29. g4 $18 (29. Nf4 Bd7 $16)) 28. Kxf2 {[%emt 0:00:01] g4 is the strong threat.} Bc8 {[%emt 0:01:01]} 29. Ra5 {[%emt 0:01:57]} a6 {[%emt 0:00:46]} 30. Ra3 {[%emt 0:01:02]} Nb5 {[%emt 0:00:39]} 31. Rb3 {[%emt 0:01:09]} Rc2 {[%emt 0:00:57]} 32. Rc1 {[%emt 0:00:34]} Rxc1 {[%emt 0:00:51]} 33. Nxc1 {[%emt 0:00:04]} Bd7 {[%emt 0:03:46]} 34. Ne2 {[%emt 0:01:42]} Rc8 {[%emt 0:00:07]} 35. Rd3 {[%emt 0:01:53]} Rxc4 {[%emt 0:01:29]} 36. Rxd7 $11 {[%emt 0:00:06][%cal Rd7d8][%mdl 4096] [#] Endgame KRN-KRN} Kf8 {[%emt 0:00:03]} 37. Rd2 {[%emt 0:00:17] Inhibits Rc2.} Ke7 {[%emt 0:00:52]} 38. Ke3 {[%emt 0:01:35]} Ra4 {[%emt 0:00:26]} 39. f4 {[%emt 0:02:02]} Ra3+ {[%emt 0:00:06]} 40. Ke4 {[%emt 0:00:00]} Ke6 {[%emt 0:00:00][%csl Ge6][%cal Rf7f5]} 41. Nd4+ {[%emt 0:11:25]} Nxd4 {[%emt 0:01:31]} 42. Kxd4 {[%emt 0:00:01] KR-KR} Kf5 {[%emt 0:00:38]} 43. Kc5 {[%emt 0:01:52]} Ra4 {[%emt 0:01:06]} 44. Kd6 {[%emt 0:02:00]} f6 {[%emt 0:04:02]} 45. Ke7 {[%emt 0:02:19]} g5 {[%emt 0:11:03]} 46. Rd6 {[%emt 0:02:56]} gxf4 {[%emt 0:00:45] aiming for ...f3.} 47. Rxf6+ {[%emt 0:00:06]} Kg4 {[%emt 0:00:33]} 48. gxf4 {[%emt 0:04:50]} h5 {[%emt 0:02:42]} 49. f5 {[%emt 0:01:33] Strongly threatening Ke6.} Rxa2 {[%emt 0:02:42]} 50. Rf8 {[%emt 0:05:05]} Re2+ {[%emt 0:03:02]} 51. Kd6 {[%emt 0:00:06]} Rxh2 {[%emt 0:01:35]} 52. f6 {[%emt 0:00:12]} Kf5 {[%emt 0:01:13]} 53. Ke7 {[%emt 0:00:52]} ({But not} 53. f7 Kf6 54. Ra8 Rd2+ 55. Kc5 Kxf7 56. Rxa6 Kg7 $17) 53... Rb2 {[%emt 0:00:40] White must now prevent ...Rb7+.} 54. Rh8 {[%emt 0:03:49]} Rb7+ {[%emt 0:00:45]} 55. Kd6 {[%emt 0:00:03]} Kg6 {[%emt 0:07:32]} 56. Ke6 {[%emt 0:00:05] Threatening mate with Rg8+.} Rb6+ {[%emt 0:00:04]} 57. Ke5 {[%emt 0:00:18]} Rb5+ {[%emt 0:00:37]} 58. Ke6 {[%emt 0:00:10] White threatens Rg8+ and mate.} Rb6+ {[%emt 0:00:01]} 59. Ke5 {[%emt 0:00:03]} Rxf6 {[%emt 0:01:38] Hoping for ...Rf3.} 60. Rxh5 $1 {[%emt 0:00:04]} a5 {[%emt 0:00:06]} 61. Rh4 {[%emt 0:00:45]} Rf5+ {[%emt 0:01:19]} 62. Kd6 {[%emt 0:00:05]} Rh5 {[%emt 0:00:17]} 63. Rxh5 {[%emt 0:00:11]} Kxh5 {[%emt 0:00:03] KP-K} 64. Kc5 {[%emt 0:00:05][%cal Bd6c5,Bc5c4,Bc4b3,Bb3a3][%mdl 32]} Kh6 {[%emt 0:00:07][%cal Bh5h6,Bh6h7,Bh7g6][%mdl 32]} 65. Kc4 {[%emt 0:00:04]} Kh7 {[%emt 0:00:01]} 66. Kb3 {[%emt 0:00:05]} a4+ {[%emt 0:00:03]} 67. Ka3 {[%emt 0:00:05]} Kg6 {[%emt 0:00:04]} 68. Ka2 {[%emt 0:00:04]} a3 {[%emt 0:00:07]} 69. Ka1 {[%emt 0:00:04]} a2 {[%emt 0:00:03]} 70. Kxa2 {[%emt 0:00:06] Weighted Error Value: White=0.03 (flawless) /Black=0.02 (flawless)} 1/2-1/2

[Event "Polish Youth Ekstraliga 2022"]
[Site "Lublin"]
[Date "2022.06.29"]
[Round "5.9"]
[White "Raczek, Krzysztof"]
[Black "Zielonka, Adam"]
[Result "1/2-1/2"]
[ECO "B44"]
[WhiteElo "2114"]
[BlackElo "1988"]
[Annotator "TA"]
[PlyCount "135"]
[EventDate "2022.06.24"]
[EventType "team-tourn"]
[EventCountry "POL"]
[SourceTitle "playchess.com"]
[Source "ChessBase"]
[SourceQuality "1"]
[TimeControl "40/5400+30:1800+30"]

{[%evp 12,135,12,19,21,7,16,10,16,0,0,0,0,-9,-8,-7,-9,-21,-1,-10,-10,-22,-12,-25,-19,-24,-14,-20,-25,-18,-18,-20,17,0,0,-20,-3,-11,-7,-7,0,0,0,0,0,-18,-12,-28,0,0,0,0,0,0,0,0,0,0,0,0,0,0,0,0,0,-2,0,0,18,8,31,0,0,0,0,0,0,0,0,0,37,18,52,52,86,0,0,0,0,0,58,61,60,50,91,52,52,9,9,10,10,10,10,13,68,68,68,62,79,79,87,87,131,131,131,131,131,92,92,92,92,92,92,92,92,92]} 1. e4 {[%emt 0:00:14]} c5 {[%emt 0:00:06]} 2. Nf3 {[%emt 0:00:03][%cal Bg1f3,Bf3d4,Bd4b5][%mdl 32]} e6 {[%emt 0:00:04]} 3. d4 {[%emt 0:00:02]} cxd4 {[%emt 0:00:04]} 4. Nxd4 {[%emt 0:00:02]} Nc6 {[%emt 0:00:06]} 5. Nb5 {[%emt 0:00:02]} d6 {[%emt 0:00:07]} 6. c4 {[%emt 0:00:06]} Nf6 {[%emt 0:00:19]} 7. N1c3 {[%emt 0:00:05]} a6 {[%emt 0:00:05] B44: Sicilian: Taimanov: 5 Nb5.} 8. Na3 {[%emt 0:00:05] 8.Nd4 is more fashionable.} Qa5 {[%emt 0:01:03]} 9. Bd2 {[%emt 0:02:38]} Be7 {[%emt 0:00:23] The position is equal.} 10. Nd5 {[%emt 0:05:15]} Qd8 {[%emt 0:00:05]} 11. Nxe7 {[%emt 0:00:04]} Qxe7 {[%emt 0:00:04]} 12. Bd3 {[%emt 0:01:08]} d5 {[%emt 0:00:14]} 13. exd5 {[%emt 0:02:28]} exd5+ {[%emt 0:00:06]} 14. Qe2 {[%emt 0:00:02]} Be6 {[%emt 0:00:06]} 15. O-O {[%emt 0:04:15]} O-O {[%emt 0:00:05] [#]} 16. Rfe1 $146 {[%emt 0:11:18]} ({Predecessor:} 16. Bg5 Rad8 17. Rfe1 h6 18. Bh4 Rfe8 19. Nc2 g5 20. Bg3 Qd7 21. c5 Bf5 22. Qd2 Bxd3 23. Qxd3 {0-1 (55) Diakonova,E (2233)-Schekachikhin,M (2402) Moscow 2019}) 16... Rad8 {[%emt 0:04:07]} 17. Bc3 {[%emt 0:09:44]} d4 {[%emt 0:18:32]} 18. Bd2 {[%emt 0:00:20]} Qd6 {[%emt 0:00:37]} 19. Qf3 {[%emt 0:22:48]} Ne5 {[%emt 0:02:25]} (19... Ng4 20. Bf4 Qd7 21. h3 $14) 20. Qg3 {[%emt 0:00:57]} Nxd3 {[%emt 0:00:26]} 21. Qxd3 {[%emt 0:00:01]} h6 {[%emt 0:02:45]} 22. Rad1 {[%emt 0:03:44]} Qc6 {[%emt 0:13:46]} 23. b3 {[%emt 0:01:28]} Bg4 {[%emt 0:02:14][%cal Be6g4,Bg4h5,Bh5g6][%mdl 32]} 24. f3 {[%emt 0:01:50]} Bh5 {[%emt 0:00:06]} 25. Bb4 {[%emt 0:00:29]} Bg6 {[%emt 0:00:46]} 26. Qd2 {[%emt 0:00:26]} Rfe8 {[%emt 0:00:34]} 27. Rxe8+ {[%emt 0:00:55]} Qxe8 {[%emt 0:01:25]} 28. Bc5 {[%emt 0:12:27]} d3 {[%emt 0:00:56]} 29. Nb1 {[%emt 0:00:28]} Qc6 {[%emt 0:01:30]} 30. Bf2 {[%emt 0:01:41]} Re8 {[%emt 0:03:40]} 31. Re1 {[%emt 0:01:29] Prevents Re2.} Rxe1+ {[%emt 0:01:46]} ({Don't do} 31... Re2 32. Rxe2 dxe2 33. Nc3 $16) 32. Qxe1 {[%emt 0:00:31]} b5 {[%emt 0:01:01]} 33. Nd2 {[%emt 0:00:33]} a5 {[%emt 0:02:49]} 34. Bd4 {[%emt 0:04:11]} bxc4 {[%emt 0:01:15]} 35. bxc4 {[%emt 0:00:40]} Qd6 {[%emt 0:06:14]} 36. Qe5 {[%emt 0:03:13]} Qa3 {[%emt 0:02:21] [#] White must now prevent ...Qc1+.} 37. Qb8+ {[%emt 0:00:18]} Kh7 {[%emt 0:01:35] And now ...Qc1+ would win.} 38. Qb2 {[%emt 0:00:37] Prevents Qc1+.} Qe7 {[%emt 0:00:09]} 39. Nf1 {[%emt 0:00:42]} Nh5 {[%emt 0:11:42]} 40. Be3 {[%emt 0:00:00] Prevents Nf4.} Nf6 {[%emt 0:00:00]} 41. Kf2 {[%emt 0:09:47]} Nd7 {[%emt 0:10:09]} 42. Qd4 {[%emt 0:00:39] Inhibits Qh4+.} Ne5 {[%emt 0:01:36]} 43. Nd2 {[%emt 0:00:57]} Nc6 {[%emt 0:00:36]} 44. Qc5 {[%emt 0:08:16]} Qf6 {[%emt 0:08:20]} 45. a3 {[%emt 0:09:26]} Ne5 {[%emt 0:13:05] [#] Threatens to win with ...Ng4+.} 46. Qd4 {[%emt 0:00:56] Inhibits Ng4+.} h5 {[%emt 0:02:31]} 47. h3 {[%emt 0:00:19] Prevents Ng4+.} Qe6 {[%emt 0:05:58]} 48. c5 {[%emt 0:01:54]} ({Better is} 48. Qd5 $16) 48... f6 $11 {[%emt 0:01:52]} 49. f4 {[%emt 0:00:57]} Nc6 {[%emt 0:00:53]} 50. Qd6 {[%emt 0:00:14]} Qxd6 {[%emt 0:03:15]} (50... Qc8 $11) 51. cxd6 {[%emt 0:00:01][%mdl 4096] Endgame KBN-KBN} Kg8 {[%emt 0:00:06]} 52. Nb3 {[%emt 0:06:54]} Be4 {[%emt 0:02:53]} 53. Bb6 {[%emt 0:03:41]} Kf7 {[%emt 0:00:17]} 54. Nxa5 {[%emt 0:01:11]} Nxa5 {[%emt 0:00:13]} 55. Bxa5 $14 {[%emt 0:00:41] Hoping for d7. KB-KB} Ke6 {[%emt 0:00:10]} 56. Bb4 {[%emt 0:00:25]} Bc6 {[%emt 0:06:42]} 57. g3 {[%emt 0:00:59]} f5 {[%emt 0:00:19]} (57... Kd5 $11) 58. Ke3 {[%emt 0:00:41]} Bb5 {[%emt 0:00:31]} 59. Kd4 {[%emt 0:00:13]} d2 {[%emt 0:02:08]} 60. Bxd2 {[%emt 0:00:04] Strongly threatening Bb4.} Kxd6 {[%emt 0:00:06]} 61. Bb4+ {[%emt 0:00:30]} Kc6 {[%emt 0:00:34]} 62. Ke5 {[%emt 0:01:00]} g6 {[%emt 0:00:09]} 63. Kf6 {[%emt 0:00:33]} Bf1 {[%emt 0:00:07]} 64. Kxg6 {[%emt 0:00:33]} Bxh3 {[%emt 0:00:04] White is better.} 65. Kxh5 {[%emt 0:00:05]} Kb5 {[%emt 0:00:12]} 66. Kg5 {[%emt 0:00:15]} Bg4 {[%emt 0:00:05]} 67. Kf6 {[%emt 0:00:01]} Ka4 {[%emt 0:00:07]} 68. Bf8 {[%emt 0:00:17] Weighted Error Value: White=0.07 (flawless) /Black=0.10 (very precise)} 1/2-1/2